Workbook

Sheet Wksh 1 - Market Experience
A1: Press TAB and directional arrow keys to read through the document. If macros are disabled, press and hold the ALT key and press the F, then I, and then N key. After that, select the Enable All Content option by pressing enter. (note that you can also press the C key to select "Enable All Content") Instructions can be found in cells K1 through K4. If screen reader fails to announce a cell after performing a dropdown selection, please press F2 and then ESC to force the screen reader to resume. | B1: Unified Rate Review v6.0 [assistive technology users, please reference cell A1 for instructions] | K1: To add a product to Worksheet 2 - Plan Product Info, select the Add Product button or Ctrl + Shift + P.
K2: To add a plan to Worksheet 2 - Plan Product Info, select the Add Plan button or Ctrl + Shift + L.
B3: Company Legal Name: | C3: WellCare Health Plans of Kentucky, Inc. | K3: To validate, select the Validate button or Ctrl + Shift + I.
B4: HIOS Issuer ID: | C4: 72001 | D4: State: | E4: KY | K4: To finalize, select the Finalize button or Ctrl + Shift + F.
B5: Effective Date of Rate Change(s): | C5: =MAX('Wksh 2 - Plan Product Info'!E19:X19) -> 2024-01-01 | D5: Market: | E5: Individual
B8: Market Level Calculations (Same for all Plans)
B11: Section I: Experience Period Data
B12: Experience Period: | D12: 2022-01-01 | E12: to | F12: =EDATE(D12,12)-1 -> 2022-12-31
E13: Total | F13: PMPM
B14: Allowed Claims | E14: 16192692.88 | F14: =E14/E19 -> 566.2176683
B15: Reinsurance | E15: 0 | F15: =E15/E19 -> 0
B16: Incurred Claims in Experience Period | E16: 12995465.54 | F16: =E16/E19 -> 454.4186847
B17: Risk Adjustment | E17: 92567.24046 | F17: =E17/E19 -> 3.236843152
B18: Experience Period Premium | E18: 17071866.4 | F18: =E18/E19 -> 596.9601511
B19: Experience Period Member Months | E19: ='Wksh 2 - Plan Product Info'!D33 -> 28598
B21: Section II: Projections
D22: Year 1 Trend | F22: Year 2 Trend
B23: Benefit Category | C23: Experience Period Index Rate PMPM | D23: Cost | E23: Utilization | F23: Cost | G23: Utilization | H23: Trended EHB Allowed Claims PMPM
B24: Inpatient Hospital | C24: 137.5899847 | D24: 1.059263942 | E24: 1.02 | F24: 1.059263942 | G24: 1.02 | H24: =PRODUCT(C24:G24) -> 160.6184918
B25: Outpatient Hospital | C25: 182.713951 | D25: 1.045896617 | E25: 1.02 | F25: 1.045896617 | G25: 1.02 | H25: 207.9455203
B26: Professional | C26: 97.52609493 | D26: 1.012960929 | E26: 1.02 | F26: 1.012960929 | G26: 1.02 | H26: 104.1133851
B27: Other Medical | C27: 7.674113867 | D27: 1 | E27: 1.02 | F27: 1 | G27: 1.02 | H27: 7.984148068
B28: Capitation | C28: 1.390582362 | D28: 1 | E28: 1 | F28: 1 | G28: 1 | H28: 1.390582362
B29: Prescription Drug | C29: 132.6385058 | D29: 1.066237353 | E29: 1.047106288 | F29: 1.066237353 | G29: 1.047106288 | H29: 165.3327698
B30: Total | C30: =SUM(C24:C29) -> 559.5332327 | H30: =SUM(H24:H29) -> 647.3848974
B32: Morbidity Adjustment | F32: 1.061422793
B33: Demographic Shift | F33: 1.019772925
B34: Plan Design Changes | F34: 1.009145166
B35: Other | F35: 0.9113665405
B36: Adjusted Trended EHB Allowed Claims PMPM for | D36: =IF(C5<>"",C5,"") -> 2024-01-01 | F36: =H30*PRODUCT(F32:F35) -> 644.4677276
B38: Manual EHB Allowed Claims PMPM | F38: 578.9716455
B39: Applied Credibility % | F39: 0.4782813398
G41: Projected Period Totals
B42: Projected Index Rate for | D42: =IF(C5<>"",C5,"") -> 2024-01-01 | F42: =ROUND(F39*F36+(1-F39)*F38,2) -> 610.3 | G42: =F42*F48 -> 54305714.6
B43: Reinsurance | F43: 0 | G43: =F43*F48 -> 0
B44: Risk Adjustment Payment/Charge | F44: 7.285577809 | G44: =F44*F48 -> 648285.2846
B45: Exchange User Fees | F45: 0 | G45: =F45*F46*F48 -> 0
B46: Market Adjusted Index Rate | F46: =(F42-F43-F44)/(1-F45) -> 603.0144222 | G46: =F46*F48 -> 53657429.32
B48: Projected Member Months | F48: ='Wksh 2 - Plan Product Info'!D73 -> 88982
B50: Information Not Releasable to the Public Unless Authorized by Law: This information has not been publically disclosed and may be privileged and confidential. It is for internal government use only and must not be disseminated, distributed, or copied to persons not authorized to receive the information. Unauthorized disclosure may result in prosecution to the full extent of the law.

Sheet Wksh 2 - Plan Product Info
A1: Press TAB and directional arrow keys to read through the document. If macros are disabled, press and hold the ALT key and press the F, then I, and then N key. After that, select the Enable All Content option by pressing enter. (note that you can also press the C key to select "Enable All Content") Instructions can be found in cells P1 through P6. If screen reader fails to announce a cell after performing a dropdown selection, please press F2 and then ESC to force the screen reader to resume. | C1: Product-Plan Data Collection [assistive technology users, please reference cell A1 for instructions] | P1: To add a product to Worksheet 2 - Plan Product Info, select the Add Product button or Ctrl + Shift + P.
P2: To add a plan to Worksheet 2 - Plan Product Info, select the Add Plan button or Ctrl + Shift + L.
C3: Company Legal Name: | D3: =IF('Wksh 1 - Market Experience'!C3<>"", 'Wksh 1 - Market Experience'!C3,"") -> WellCare Health Plans of Kentucky, Inc. | P3: To validate, select the Validate button or Ctrl + Shift + I.
C4: HIOS Issuer ID: | D4: =IF('Wksh 1 - Market Experience'!C4<>"", 'Wksh 1 - Market Experience'!C4,"") -> 72001 | E4: State: | F4: =IF('Wksh 1 - Market Experience'!E4<>"",'Wksh 1 - Market Experience'!E4,"") -> KY | P4: To finalize, select the Finalize button or Ctrl + Shift + F.
C5: Effective Date of Rate Change(s): | D5: =IF('Wksh 1 - Market Experience'!C5<>"", 'Wksh 1 - Market Experience'!C5,"") -> 2024-01-01 | E5: Market: | F5: =IF('Wksh 1 - Market Experience'!E5<>"",'Wksh 1 - Market Experience'!E5,"") -> Individual | P5: To remove a product, navigate to the corresponding Product Name/Product ID field and select the Remove Product button or Ctrl + Shift + Q.
P6: To remove a plan, navigate to the corresponding Plan Name/Plan ID field and select the Remove Plan button or Ctrl + Shift + A.
C7: Product/Plan Level Calculations
B9: Field # | C9: Section I: General Product and Plan Information
B10: 1.1 | C10: Product Name | E10: Ambetter | O10: Ambetter + Vision + Adult Dental
B11: 1.2 | C11: Product ID | E11: 72001KY002 | O11: 72001KY003
B12: 1.3 | C12: Plan Name | E12: Complete Gold | F12: Everyday Gold | G12: Clear Silver | H12: Complete Silver | I12: Focused Silver | J12: Choice Bronze HSA | K12: Everyday Bronze | L12: Ambetter Balanced Care 128 | M12: Ambetter Clear Bronze | O12: Complete Gold + Vision + Adult Dental | P12: Everyday Gold + Vision + Adult Dental | Q12: Clear Silver + Vision + Adult Dental | R12: Complete Silver + Vision + Adult Dental | S12: Focused Silver + Vision + Adult Dental | T12: Choice Bronze HSA + Vision + Adult Dental | U12: Everyday Bronze + Vision + Adult Dental | V12: Ambetter Balanced Care 128 + Vision + Adult Dental | W12: Ambetter Clear Bronze + Vision + Adult Dental
B13: 1.4 | C13: Plan ID (Standard Component ID) | E13: 72001KY0020009 | F13: 72001KY0020010 | G13: 72001KY0020006 | H13: 72001KY0020005 | I13: 72001KY0020007 | J13: 72001KY0020002 | K13: 72001KY0020003 | L13: 72001KY0020008 | M13: 72001KY0020001 | N13: 72001KY0020004 | O13: 72001KY0030009 | P13: 72001KY0030010 | Q13: 72001KY0030006 | R13: 72001KY0030005 | S13: 72001KY0030007 | T13: 72001KY0030002 | U13: 72001KY0030003 | V13: 72001KY0030008 | W13: 72001KY0030001 | X13: 72001KY0030004
B14: 1.5 | C14: Metal | E14: Gold | F14: Gold | G14: Silver | H14: Silver | I14: Silver | J14: Bronze | K14: Bronze | L14: Silver | M14: Bronze | N14: Bronze | O14: Gold | P14: Gold | Q14: Silver | R14: Silver | S14: Silver | T14: Bronze | U14: Bronze | V14: Silver | W14: Bronze | X14: Bronze
B15: 1.6 | C15: AV Metal Value | E15: 0.8074 | F15: 0.7804 | G15: 0.7104 | H15: 0.7165 | I15: 0.7032 | J15: 0.645 | K15: 0.648 | L15: 0.6923153719 | M15: 0.6137 | N15: 0.646327116 | O15: 0.8074 | P15: 0.7804 | Q15: 0.7104 | R15: 0.7165 | S15: 0.7032 | T15: 0.645 | U15: 0.648 | V15: 0.6923153719 | W15: 0.6137 | X15: 0.646327116
B16: 1.7 | C16: Plan Category | E16: Renewing | F16: Renewing | G16: Renewing | H16: Renewing | I16: Renewing | J16: Renewing | K16: Renewing | L16: Terminated | M16: Terminated | N16: Terminated | O16: Renewing | P16: Renewing | Q16: Renewing | R16: Renewing | S16: Renewing | T16: Renewing | U16: Renewing | V16: Terminated | W16: Terminated | X16: Terminated
B17: 1.8 | C17: Plan Type | E17: HMO | F17: HMO | G17: HMO | H17: HMO | I17: HMO | J17: HMO | K17: HMO | L17: HMO | M17: HMO | N17: HMO | O17: HMO | P17: HMO | Q17: HMO | R17: HMO | S17: HMO | T17: HMO | U17: HMO | V17: HMO | W17: HMO | X17: HMO
B18: 1.9 | C18: Exchange Plan? | E18: Yes | F18: Yes | G18: Yes | H18: Yes | I18: Yes | J18: Yes | K18: Yes | L18: No | M18: No | N18: No | O18: Yes | P18: Yes | Q18: Yes | R18: Yes | S18: Yes | T18: Yes | U18: Yes | V18: No | W18: No | X18: No
B19: 1.10 | C19: Effective Date of Proposed Rates | E19: 2024-01-01 | F19: 2024-01-01 | G19: 2024-01-01 | H19: 2024-01-01 | I19: 2024-01-01 | J19: 2024-01-01 | K19: 2024-01-01 | L19: 2024-01-01 | M19: 2024-01-01 | N19: 2024-01-01 | O19: 2024-01-01 | P19: 2024-01-01 | Q19: 2024-01-01 | R19: 2024-01-01 | S19: 2024-01-01 | T19: 2024-01-01 | U19: 2024-01-01 | V19: 2024-01-01 | W19: 2024-01-01 | X19: 2024-01-01
B20: 1.11 | C20: Cumulative Rate Change % (over 12 mos prior) | E20: -0.02160112494 | F20: -0.02375573956 | G20: -0.002918945558 | H20: -0.003812791516 | I20: -0.001297734658 | J20: -0.03249102064 | K20: -0.029471054 | L20: 0 | M20: 0 | N20: 0 | O20: -0.0242245135 | P20: -0.02252298522 | Q20: -0.00739528378 | R20: -0.01046160724 | S20: -0.01578593024 | T20: -0.03254364666 | U20: -0.02839196997 | V20: 0 | W20: 0 | X20: 0
B21: 1.12 | C21: Product Rate Increase % | E21: =IF(SUMPRODUCT((E16:N16="Renewing")*((E14:N14="Platinum")+(E14:N14="Gold")+(E14:N14="Silver")+(E14:N14="Bronze")+(E14:N14="Catastrophic")))=0, 0, ROUND(ROUND(SUMPRODUCT(1+E20:N20,E34:N34,E35:N35,--(E16:N16="Renewing")*((E14:N14="Platinum")+(E14:N14="Gold")+(E14:N14="Silver")+(E14:N14="Bronze")+(E14:N14="Catastrophic")))/SUMPRODUCT(E34:N34,E35:N35,--(E16:N16="Renewing")*((E14:N14="Platinum")+(E14:N14="Gold")+(E14:N14="Silver")+(E14:N14="Bronze")+(E14:N14="Catastrophic"))), 4)-1, 4)) -> -0.0149 | O21: =IF(SUMPRODUCT((O16:X16="Renewing")*((O14:X14="Platinum")+(O14:X14="Gold")+(O14:X14="Silver")+(O14:X14="Bronze")+(O14:X14="Catastrophic")))=0, 0, ROUND(ROUND(SUMPRODUCT(1+O20:X20,O34:X34,O35:X35,--(O16:X16="Renewing")*((O14:X14="Platinum")+(O14:X14="Gold")+(O14:X14="Silver")+(O14:X14="Bronze")+(O14:X14="Catastrophic")))/SUMPRODUCT(O34:X34,O35:X35,--(O16:X16="Renewing")*((O14:X14="Platinum")+(O14:X14="Gold")+(O14:X14="Silver")+(O14:X14="Bronze")+(O14:X14="Catastrophic"))), 4)-1, 4)) -> -0.0188
B22: 1.13 | C22: Submission Level Rate Increase % | E22: =IF(SUMPRODUCT((E16:X16="Renewing")*((E14:X14="Platinum")+(E14:X14="Gold")+(E14:X14="Silver")+(E14:X14="Bronze")+(E14:X14="Catastrophic")))=0, 0, ROUND(ROUND(SUMPRODUCT(1+E20:X20,E34:X34,E35:X35,--(E16:X16="Renewing")*((E14:X14="Platinum")+(E14:X14="Gold")+(E14:X14="Silver")+(E14:X14="Bronze")+(E14:X14="Catastrophic")))/SUMPRODUCT(E34:X34,E35:X35,--(E16:X16="Renewing")*((E14:X14="Platinum")+(E14:X14="Gold")+(E14:X14="Silver")+(E14:X14="Bronze")+(E14:X14="Catastrophic"))), 4)-1, 4)) -> -0.0161
A24: Worksheet 1 Totals | C24: Section II: Experience Period and Current Plan Level Information
B25: 2.1 | C25: Plan ID (Standard Component ID) | D25: Total | E25: =E13 -> 72001KY0020009 | F25: 72001KY0020010 | G25: 72001KY0020006 | H25: 72001KY0020005 | I25: 72001KY0020007 | J25: 72001KY0020002 | K25: 72001KY0020003 | L25: 72001KY0020008 | M25: 72001KY0020001 | N25: 72001KY0020004 | O25: 72001KY0030009 | P25: 72001KY0030010 | Q25: 72001KY0030006 | R25: 72001KY0030005 | S25: 72001KY0030007 | T25: 72001KY0030002 | U25: 72001KY0030003 | V25: 72001KY0030008 | W25: 72001KY0030001 | X25: 72001KY0030004
A26: ='Wksh 1 - Market Experience'!E14 -> 16192692.88 | B26: 2.2 | C26: Allowed Claims | D26: =SUM(E26:XFD26) -> 16192692.88 | E26: =1188463.30650131 -> 1188463.307 | F26: =2266978.78613025 -> 2266978.786 | G26: =2083462.0166494 -> 2083462.017 | H26: =884976.808110543 -> 884976.8081 | I26: =1910032.1950466 -> 1910032.195 | J26: =985993.05721584 -> 985993.0572 | K26: =569685.23437006 -> 569685.2344 | L26: =136958.702371344 -> 136958.7024 | M26: =1210362.82593656 -> 1210362.826 | N26: =956900.33962726 -> 956900.3396 | O26: =882074.310539957 -> 882074.3105 | P26: =177773.843538432 -> 177773.8435 | Q26: =1090358.42491998 -> 1090358.425 | R26: =120434.276164884 -> 120434.2762 | S26: =407530.185373747 -> 407530.1854 | T26: =346880.877282311 -> 346880.8773 | U26: =96939.1621091555 -> 96939.16211 | V26: =103807.402636246 -> 103807.4026 | W26: =677159.770426323 -> 677159.7704 | X26: =95921.3518669593 -> 95921.35187
A27: ='Wksh 1 - Market Experience'!E15 -> 0 | B27: 2.3 | C27: Reinsurance | D27: =SUM(E27:XFD27) -> 0 | E27: =0 -> 0 | F27: =0 -> 0 | G27: =0 -> 0 | H27: =0 -> 0 | I27: =0 -> 0 | J27: =0 -> 0 | K27: =0 -> 0 | L27: =0 -> 0 | M27: =0 -> 0 | N27: =0 -> 0 | O27: =0 -> 0 | P27: =0 -> 0 | Q27: =0 -> 0 | R27: =0 -> 0 | S27: =0 -> 0 | T27: =0 -> 0 | U27: =0 -> 0 | V27: =0 -> 0 | W27: =0 -> 0 | X27: =0 -> 0
B28: 2.4 | C28: Member Cost Sharing | D28: =SUM(E28:XFD28) -> 3197227.332 | E28: =220330.334351012 -> 220330.3344 | F28: =180840.163712939 -> 180840.1637 | G28: =262811.030606035 -> 262811.0306 | H28: =137481.027868455 -> 137481.0279 | I28: =287811.83089521 -> 287811.8309 | J28: =267943.343248505 -> 267943.3432 | K28: =216211.266889903 -> 216211.2669 | L28: =38617.6806364924 -> 38617.68064 | M28: =528397.127954463 -> 528397.128 | N28: =153340.211342627 -> 153340.2113 | O28: =139255.399199812 -> 139255.3992 | P28: =58563.6448717885 -> 58563.64487 | Q28: =153913.299734863 -> 153913.2997 | R28: =33202.9038140714 -> 33202.90381 | S28: =64637.9779766147 -> 64637.97798 | T28: =101533.927819819 -> 101533.9278 | U28: =45137.0032352884 -> 45137.00324 | V28: =28645.3647585795 -> 28645.36476 | W28: =238592.336489532 -> 238592.3365 | X28: =39961.4567295682 -> 39961.45673
B29: 2.5 | C29: Cost Sharing Reduction | D29: =SUM(E29:XFD29) -> 0 | E29: =0 -> 0 | F29: =0 -> 0 | G29: =0 -> 0 | H29: =0 -> 0 | I29: =0 -> 0 | J29: =0 -> 0 | K29: =0 -> 0 | L29: =0 -> 0 | M29: =0 -> 0 | N29: =0 -> 0 | O29: =0 -> 0 | P29: =0 -> 0 | Q29: =0 -> 0 | R29: =0 -> 0 | S29: =0 -> 0 | T29: =0 -> 0 | U29: =0 -> 0 | V29: =0 -> 0 | W29: =0 -> 0 | X29: =0 -> 0
A30: ='Wksh 1 - Market Experience'!E16 -> 12995465.54 | B30: 2.6 | C30: Incurred Claims | D30: =D26-D27-D28-D29 -> 12995465.54 | E30: 968132.9722 | F30: 2086138.622 | G30: 1820650.986 | H30: 747495.7802 | I30: 1622220.364 | J30: 718049.714 | K30: 353473.9675 | L30: 98341.02173 | M30: 681965.698 | N30: 803560.1283 | O30: 742818.9113 | P30: 119210.1987 | Q30: 936445.1252 | R30: 87231.37235 | S30: 342892.2074 | T30: 245346.9495 | U30: 51802.15887 | V30: 75162.03788 | W30: 438567.4339 | X30: 55959.89514
A31: ='Wksh 1 - Market Experience'!E17 -> 92567.24046 | B31: 2.7 | C31: Risk Adjustment Transfer Amount | D31: =SUM(E31:XFD31) -> 92567.24047 | E31: =330819.844171951 -> 330819.8442 | F31: =288213.488687161 -> 288213.4887 | G31: =703326.706569902 -> 703326.7066 | H31: =206233.928985307 -> 206233.929 | I31: =189369.089505443 -> 189369.0895 | J31: =114167.146099033 -> 114167.1461 | K31: =-498360.887583807 -> -498360.8876 | L31: =-125688.354720889 -> -125688.3547 | M31: =-911545.525856536 -> -911545.5259 | N31: =52249.764179103 -> 52249.76418 | O31: =435056.346395668 -> 435056.3464 | P31: =-18876.9937427619 -> -18876.99374 | Q31: =-5974.30704853124 -> -5974.307049 | R31: =-76672.0472785166 -> -76672.04728 | S31: =-162563.805868862 -> -162563.8059 | T31: =132121.519294619 -> 132121.5193 | U31: =-132039.638369595 -> -132039.6384 | V31: =-80245.7463079577 -> -80245.74631 | W31: =-207586.850645254 -> -207586.8506 | X31: =-139436.436000476 -> -139436.436
A32: ='Wksh 1 - Market Experience'!E18 -> 17071866.4 | B32: 2.8 | C32: Premium | D32: =SUM(E32:XFD32) -> 17071866.4 | E32: =844081.93 -> 844081.93 | F32: =763790.1 -> 763790.1 | G32: =1743910.15 -> 1743910.15 | H32: =679848.98 -> 679848.98 | I32: =2527319.17 -> 2527319.17 | J32: =1135204.48 -> 1135204.48 | K32: =1341400.84 -> 1341400.84 | L32: =251340.67 -> 251340.67 | M32: =2408396.83 -> 2408396.83 | N32: =712801.72 -> 712801.72 | O32: =457723.24 -> 457723.24 | P32: =334313.11 -> 334313.11 | Q32: =989312.88 -> 989312.88 | R32: =265470.53 -> 265470.53 | S32: =782115.83 -> 782115.83 | T32: =362680.13 -> 362680.13 | U32: =263120.46 -> 263120.46 | V32: =184806.88 -> 184806.88 | W32: =763727.2 -> 763727.2 | X32: =260501.27 -> 260501.27
A33: ='Wksh 1 - Market Experience'!E19 -> 28598 | B33: 2.9 | C33: Experience Period Member Months | D33: =SUM(E33:XFD33) -> 28598 | E33: =1098 -> 1098 | F33: =1011 -> 1011 | G33: =2634 -> 2634 | H33: =974 -> 974 | I33: =3741 -> 3741 | J33: =1965 -> 1965 | K33: =2247 -> 2247 | L33: =364 -> 364 | M33: =4920 -> 4920 | N33: =1186 -> 1186 | O33: =735 -> 735 | P33: =551 -> 551 | Q33: =1658 -> 1658 | R33: =425 -> 425 | S33: =1459 -> 1459 | T33: =724 -> 724 | U33: =507 -> 507 | V33: =290 -> 290 | W33: =1641 -> 1641 | X33: =468 -> 468
B34: 2.10 | C34: Current Enrollment | D34: =SUM(E34:XFD34) -> 4886 | E34: =269 -> 269 | F34: =327 -> 327 | G34: =434 -> 434 | H34: =255 -> 255 | I34: =621 -> 621 | J34: =265 -> 265 | K34: =619 -> 619 | L34: =0 -> 0 | M34: =559 -> 559 | N34: =0 -> 0 | O34: =195 -> 195 | P34: =207 -> 207 | Q34: =246 -> 246 | R34: =141 -> 141 | S34: =237 -> 237 | T34: =113 -> 113 | U34: =192 -> 192 | V34: =0 -> 0 | W34: =206 -> 206 | X34: =0 -> 0
B35: 2.11 | C35: Current Premium PMPM | D35: =SUMPRODUCT(E35:XFD35,E34:XFD34)/D34 -> 618.2386185 | E35: =662.758252788104 -> 662.7582528 | F35: =714.377706422018 -> 714.3777064 | G35: =695.047811059908 -> 695.0478111 | H35: =685.977372549019 -> 685.9773725 | I35: =694.382946859904 -> 694.3829469 | J35: =593.969849056604 -> 593.9698491 | K35: =597.345961227786 -> 597.3459612 | L35: =0 -> 0 | M35: =534.61939177102 -> 534.6193918 | N35: =0 -> 0 | O35: =591.039179487179 -> 591.0391795 | P35: =607.548550724638 -> 607.5485507 | Q35: =623.547601626016 -> 623.5476016 | R35: =592.12524822695 -> 592.1252482 | S35: =565.579578059072 -> 565.5795781 | T35: =528.020796460177 -> 528.0207965 | U35: =524.234583333333 -> 524.2345833 | V35: =0 -> 0 | W35: =498.897621359223 -> 498.8976214 | X35: =0 -> 0
B36: 2.12 | C36: Loss Ratio | D36: =D30/(D31+D32) -> 0.7571158954 | E36: 0.8240118395 | F36: 1.98301474 | G36: 0.7439619018 | H36: 0.8435957546 | I36: 0.5971315842 | J36: 0.5747286868 | K36: 0.4192849538 | L36: 0.7826439291 | M36: 0.4556001629 | N36: 1.050334709 | O36: 0.8320294535 | P36: 0.3779218438 | Q36: 0.9523120021 | R36: 0.462034287 | S36: 0.5534518395 | T36: 0.4958490939 | U36: 0.3951925097 | V36: 0.7188334252 | W36: 0.7885912872 | X36: 0.4622308005
C37: Per Member Per Month
B38: 2.13 | C38: Allowed Claims | D38: =D26/D33 -> 566.2176683 | E38: 1082.389168 | F38: 2242.313339 | G38: 790.9878575 | H38: 908.600419 | I38: 510.5672802 | J38: 501.7776373 | K38: 253.5314795 | L38: 376.2601713 | M38: 246.0087045 | N38: 806.829966 | O38: 1200.101103 | P38: 322.6385545 | Q38: 657.6347557 | R38: 283.3747674 | S38: 279.3215801 | T38: 479.1172338 | U38: 191.2015032 | V38: 357.9565608 | W38: 412.6506828 | X38: 204.9601536
B39: 2.14 | C39: Reinsurance | D39: =D27/D33 -> 0 | E39: 0 | F39: 0 | G39: 0 | H39: 0 | I39: 0 | J39: 0 | K39: 0 | L39: 0 | M39: 0 | N39: 0 | O39: 0 | P39: 0 | Q39: 0 | R39: 0 | S39: 0 | T39: 0 | U39: 0 | V39: 0 | W39: 0 | X39: 0
B40: 2.15 | C40: Member Cost Sharing | D40: =D28/D33 -> 111.7989836 | E40: 200.6651497 | F40: 178.8725655 | G40: 99.77639734 | H40: 141.1509526 | I40: 76.93446429 | J40: 136.3579355 | K40: 96.22219265 | L40: 106.0925292 | M40: 107.3977902 | N40: 129.2919151 | O40: 189.4631282 | P40: 106.2861068 | Q40: 92.83069948 | R40: 78.12447956 | S40: 44.30293213 | T40: 140.2402318 | U40: 89.02761979 | V40: 98.77711986 | W40: 145.3944768 | X40: 85.38772805
B41: 2.16 | C41: Cost Sharing Reduction | D41: =D29/D33 -> 0 | E41: 0 | F41: 0 | G41: 0 | H41: 0 | I41: 0 | J41: 0 | K41: 0 | L41: 0 | M41: 0 | N41: 0 | O41: 0 | P41: 0 | Q41: 0 | R41: 0 | S41: 0 | T41: 0 | U41: 0 | V41: 0 | W41: 0 | X41: 0
B42: 2.17 | C42: Incurred Claims | D42: =D30/D33 -> 454.4186847 | E42: 881.7240184 | F42: 2063.440774 | G42: 691.2114602 | H42: 767.4494664 | I42: 433.6328159 | J42: 365.4197018 | K42: 157.3092868 | L42: 270.1676421 | M42: 138.6109142 | N42: 677.5380508 | O42: 1010.637975 | P42: 216.3524477 | Q42: 564.8040562 | R42: 205.2502879 | S42: 235.018648 | T42: 338.877002 | U42: 102.1738834 | V42: 259.179441 | W42: 267.2562059 | X42: 119.5724255
B43: 2.18 | C43: Risk Adjustment Transfer Amount | D43: =D31/D33 -> 3.236843152 | E43: 301.2931186 | F43: 285.0776347 | G43: 267.0184915 | H43: 211.7391468 | I43: 50.61991166 | J43: 58.1003288 | K43: -221.7894471 | L43: -345.2976778 | M43: -185.2734809 | N43: 44.0554504 | O43: 591.9133965 | P43: -34.25951677 | Q43: -3.603321501 | R43: -180.4048171 | S43: -111.4213885 | T43: 182.4882863 | U43: -260.4332118 | V43: -276.70947 | W43: -126.5002137 | X43: -297.9411026
B44: 2.19 | C44: Premium | D44: =D32/D33 -> 596.9601511 | E44: 768.7449271 | F44: 755.479822 | G44: 662.0767464 | H44: 697.9968994 | I44: 675.5731542 | J44: 577.7122036 | K44: 596.9741166 | L44: 690.4963462 | M44: 489.5115508 | N44: 601.0132546 | O44: 622.7527075 | P44: 606.7388566 | Q44: 596.6905187 | R44: 624.6365412 | S44: 536.0629404 | T44: 500.9394061 | U44: 518.9752663 | V44: 637.2651034 | W44: 465.4035344 | X44: 556.6266453
C46: Section III: Plan Adjustment Factors
B47: 3.1 | C47: Plan ID (Standard Component ID) | E47: =E13 -> 72001KY0020009 | F47: 72001KY0020010 | G47: 72001KY0020006 | H47: 72001KY0020005 | I47: 72001KY0020007 | J47: 72001KY0020002 | K47: 72001KY0020003 | L47: 72001KY0020008 | M47: 72001KY0020001 | N47: 72001KY0020004 | O47: 72001KY0030009 | P47: 72001KY0030010 | Q47: 72001KY0030006 | R47: 72001KY0030005 | S47: 72001KY0030007 | T47: 72001KY0030002 | U47: 72001KY0030003 | V47: 72001KY0030008 | W47: 72001KY0030001 | X47: 72001KY0030004
B48: 3.2 | C48: Market Adjusted Index Rate | E48: ='Wksh 1 - Market Experience'!F46 -> 603.0144222
B49: 3.3 | C49: AV and Cost Sharing Design of Plan | E49: 0.9758784283 | F49: 0.9359529169 | G49: 0.8505370552 | H49: 0.8833077736 | I49: 0.8713831187 | J49: 0.7526665539 | K49: 0.74427513 | L49: 0 | M49: 0 | N49: 0 | O49: 0.9758784283 | P49: 0.9359529169 | Q49: 0.8505370552 | R49: 0.8833077736 | S49: 0.8713831187 | T49: 0.7526665539 | U49: 0.74427513 | V49: 0 | W49: 0 | X49: 0
B50: 3.4 | C50: Provider Network Adjustment | E50: 1 | F50: 1 | G50: 1 | H50: 1 | I50: 1 | J50: 1 | K50: 1 | L50: 1 | M50: 1 | N50: 1 | O50: 1 | P50: 1 | Q50: 1 | R50: 1 | S50: 1 | T50: 1 | U50: 1 | V50: 1 | W50: 1 | X50: 1
B51: 3.5 | C51: Benefits in Addition to EHB | E51: 1 | F51: 1 | G51: 1 | H51: 1 | I51: 1 | J51: 1 | K51: 1 | L51: 1 | M51: 1 | N51: 1 | O51: 1.038127649 | P51: 1.038127649 | Q51: 1.038127649 | R51: 1.038127649 | S51: 1.038127649 | T51: 1.038127649 | U51: 1.038127649 | V51: 1 | W51: 1 | X51: 1
C52: Administrative Costs
B53: 3.6 | C53: Administrative Expense | E53: 0.1318277247 | F53: 0.1318277247 | G53: 0.1318277247 | H53: 0.1318277247 | I53: 0.1318277247 | J53: 0.1318277247 | K53: 0.1318277247 | L53: 0 | M53: 0 | N53: 0 | O53: 0.1318277247 | P53: 0.1318277247 | Q53: 0.1318277247 | R53: 0.1318277247 | S53: 0.1318277247 | T53: 0.1318277247 | U53: 0.1318277247 | V53: 0 | W53: 0 | X53: 0
B54: 3.7 | C54: Taxes and Fees | E54: 0.0213673143 | F54: 0.0213673143 | G54: 0.0213673143 | H54: 0.0213673143 | I54: 0.0213673143 | J54: 0.0213673143 | K54: 0.0213673143 | L54: 0 | M54: 0 | N54: 0 | O54: 0.0213673143 | P54: 0.0213673143 | Q54: 0.0213673143 | R54: 0.0213673143 | S54: 0.0213673143 | T54: 0.0213673143 | U54: 0.0213673143 | V54: 0 | W54: 0 | X54: 0
B55: 3.8 | C55: Profit & Risk Load | E55: 0.0395 | F55: 0.0395 | G55: 0.0395 | H55: 0.0395 | I55: 0.0395 | J55: 0.0395 | K55: 0.0395 | L55: 0 | M55: 0 | N55: 0 | O55: 0.0395 | P55: 0.0395 | Q55: 0.0395 | R55: 0.0395 | S55: 0.0395 | T55: 0.0395 | U55: 0.0395 | V55: 0 | W55: 0 | X55: 0
B56: 3.9 | C56: Catastrophic Adjustment | E56: 1 | F56: 1 | G56: 1 | H56: 1 | I56: 1 | J56: 1 | K56: 1 | L56: 1 | M56: 1 | N56: 1 | O56: 1 | P56: 1 | Q56: 1 | R56: 1 | S56: 1 | T56: 1 | U56: 1 | V56: 1 | W56: 1 | X56: 1
B57: 3.10 | C57: Plan Adjusted Index Rate | E57: =($E$48*PRODUCT(E49:E51)*E56)/(1-SUM(E53:E55)) -> 728.9299521 | F57: 699.1076912 | G57: 635.3065269 | H57: 659.7845331 | I57: 650.8774419 | J57: 562.2024006 | K57: 555.9344476 | L57: 0 | M57: 0 | N57: 0 | O57: 756.7223372 | P57: 725.7630236 | Q57: 659.5292709 | R57: 684.9405659 | S57: 675.6938683 | T57: 583.6378562 | U57: 577.1309208 | V57: 0 | W57: 0 | X57: 0
B59: 3.11 | C59: Age Calibration Factor | D59: 0.537318678 | E59: =IF(D59<>"", D59, "") -> 0.537318678
B60: 3.12 | C60: Geographic Calibration Factor | D60: 1 | E60: =IF(D60<>"", D60, "") -> 1
B61: 3.13 | C61: Tobacco Calibration Factor | D61: 0.9959641354 | E61: =IF(D61<>"", D61, "") -> 0.9959641354
B62: 3.14 | C62: Calibrated Plan Adjusted Index Rate | E62: =E57*(PRODUCT($E$59:$E$61)) -> 390.0869605 | F62: 374.1275736 | G62: 339.9843721 | H62: 353.0837803 | I62: 348.3171493 | J62: 300.8626892 | K62: 297.5083933 | L62: 0 | M62: 0 | N62: 0 | O62: 404.9600591 | P62: 388.3921783 | Q62: 352.9471767 | R62: 366.5460346 | S62: 361.5976632 | T62: 312.3338761 | U62: 308.8516888 | V62: 0 | W62: 0 | X62: 0
C64: Section IV: Projected Plan Level Information
B65: 4.1 | C65: Plan ID (Standard Component ID) | D65: Total | E65: =E13 -> 72001KY0020009 | F65: 72001KY0020010 | G65: 72001KY0020006 | H65: 72001KY0020005 | I65: 72001KY0020007 | J65: 72001KY0020002 | K65: 72001KY0020003 | L65: 72001KY0020008 | M65: 72001KY0020001 | N65: 72001KY0020004 | O65: 72001KY0030009 | P65: 72001KY0030010 | Q65: 72001KY0030006 | R65: 72001KY0030005 | S65: 72001KY0030007 | T65: 72001KY0030002 | U65: 72001KY0030003 | V65: 72001KY0030008 | W65: 72001KY0030001 | X65: 72001KY0030004
B66: 4.2 | C66: Allowed Claims | D66: =SUM(E66:XFD66) -> 54930393.75 | E66: =2949542.90862124 -> 2949542.909 | F66: =3371694.02234437 -> 3371694.022 | G66: =6982944.72504505 -> 6982944.725 | H66: =3011534.91862659 -> 3011534.919 | I66: =8773435.11594187 -> 8773435.116 | J66: =2841862.69481664 -> 2841862.695 | K66: =11052823.1837252 -> 11052823.18 | L66: =0 -> 0 | M66: =0 -> 0 | N66: =0 -> 0 | O66: =1084394.92463359 -> 1084394.925 | P66: =1240940.66362741 -> 1240940.664 | Q66: =3144858.56492967 -> 3144858.565 | R66: =1327298.74622009 -> 1327298.746 | S66: =3992682.69347905 -> 3992682.693 | T66: =1054004.02604827 -> 1054004.026 | U66: =4102376.56633585 -> 4102376.566 | V66: =0 -> 0 | W66: =0 -> 0 | X66: =0 -> 0
B67: 4.3 | C67: Reinsurance | D67: =SUM(E67:XFD67) -> 0 | E67: =0 -> 0 | F67: =0 -> 0 | G67: =0 -> 0 | H67: =0 -> 0 | I67: =0 -> 0 | J67: =0 -> 0 | K67: =0 -> 0 | L67: =0 -> 0 | M67: =0 -> 0 | N67: =0 -> 0 | O67: =0 -> 0 | P67: =0 -> 0 | Q67: =0 -> 0 | R67: =0 -> 0 | S67: =0 -> 0 | T67: =0 -> 0 | U67: =0 -> 0 | V67: =0 -> 0 | W67: =0 -> 0 | X67: =0 -> 0
B68: 4.4 | C68: Member Cost Sharing | D68: =SUM(E68:XFD68) -> 9112285.216 | E68: =408180.09516985 -> 408180.0952 | F68: =530894.156449321 -> 530894.1564 | G68: =507749.72845574 -> 507749.7285 | H68: =371205.578573723 -> 371205.5786 | I68: =805056.12296425 -> 805056.123 | J68: =608976.444371969 -> 608976.4444 | K68: =3293864.3183576 -> 3293864.318 | L68: =0 -> 0 | M68: =0 -> 0 | N68: =0 -> 0 | O68: =153447.255151973 -> 153447.2552 | P68: =198426.488538787 -> 198426.4885 | Q68: =245947.148670538 -> 245947.1487 | R68: =168495.189250123 -> 168495.1893 | S68: =385144.359358031 -> 385144.3594 | T68: =226076.691432013 -> 226076.6914 | U68: =1208821.63943277 -> 1208821.639 | V68: =0 -> 0 | W68: =0 -> 0 | X68: =0 -> 0
B69: 4.5 | C69: Cost Sharing Reduction | D69: =SUM(E69:XFD69) -> 0 | E69: =0 -> 0 | F69: =0 -> 0 | G69: =0 -> 0 | H69: =0 -> 0 | I69: =0 -> 0 | J69: =0 -> 0 | K69: =0 -> 0 | L69: =0 -> 0 | M69: =0 -> 0 | N69: =0 -> 0 | O69: =0 -> 0 | P69: =0 -> 0 | Q69: =0 -> 0 | R69: =0 -> 0 | S69: =0 -> 0 | T69: =0 -> 0 | U69: =0 -> 0 | V69: =0 -> 0 | W69: =0 -> 0 | X69: =0 -> 0
B70: 4.6 | C70: Incurred Claims | D70: =D66-D67-D68-D69 -> 45818108.54 | E70: 2541362.813 | F70: 2840799.866 | G70: 6475194.997 | H70: 2640329.34 | I70: 7968378.993 | J70: 2232886.25 | K70: 7758958.865 | L70: 0 | M70: 0 | N70: 0 | O70: 930947.6695 | P70: 1042514.175 | Q70: 2898911.416 | R70: 1158803.557 | S70: 3607538.334 | T70: 827927.3346 | U70: 2893554.927 | V70: 0 | W70: 0 | X70: 0
B71: 4.7 | C71: Risk Adjustment Transfer Amount | D71: =SUM(E71:XFD71) -> 538299.1189 | E71: =-127675.09620901 -> -127675.0962 | F71: =-149776.10805942 -> -149776.1081 | G71: =401939.119542912 -> 401939.1195 | H71: =106637.597299037 -> 106637.5973 | I71: =567750.033587937 -> 567750.0336 | J71: =-93773.537875281 -> -93773.53788 | K71: =-371601.16377782 -> -371601.1638 | L71: =0 -> 0 | M71: =0 -> 0 | N71: =0 -> 0 | O71: =-45130.030838301 -> -45130.03084 | P71: =-52944.614152037 -> -52944.61415 | Q71: =174232.705439495 -> 174232.7054 | R71: =45195.1903747112 -> 45195.19037 | S71: =248847.225580789 -> 248847.2256 | T71: =-33340.428604801 -> -33340.4286 | U71: =-132061.77340675 -> -132061.7734 | V71: =0 -> 0 | W71: =0 -> 0 | X71: =0 -> 0
B72: 4.8 | C72: Premium | D72: =SUM(E72:XFD72) -> 56076196 | E72: =3450009.44008719 -> 3450009.44 | F72: =3884224.29247758 -> 3884224.292 | G72: =6914644.12403593 -> 6914644.124 | H72: =3174208.64616951 -> 3174208.646 | I72: =8751006.56244118 -> 8751006.562 | J72: =2759276.56698489 -> 2759276.567 | K72: =10915722.180488 -> 10915722.18 | L72: =0 -> 0 | M72: =0 -> 0 | N72: =0 -> 0 | O72: =1265990.59034003 -> 1265990.59 | P72: =1425391.95826986 -> 1425391.958 | Q72: =3111644.64831094 -> 3111644.648 | R72: =1396587.3275164 -> 1396587.328 | S72: =3981845.47225105 -> 3981845.472 | T72: =1018443.32898498 -> 1018443.329 | U72: =4027200.861476 -> 4027200.861 | V72: =0 -> 0 | W72: =0 -> 0 | X72: =0 -> 0
B73: 4.9 | C73: Projected Member Months | D73: =SUM(E73:XFD73) -> 88982 | E73: =4733 -> 4733 | F73: =5556 -> 5556 | G73: =10884 -> 10884 | H73: =4811 -> 4811 | I73: =13445 -> 13445 | J73: =4908 -> 4908 | K73: =19635 -> 19635 | L73: =0 -> 0 | M73: =0 -> 0 | N73: =0 -> 0 | O73: =1673 -> 1673 | P73: =1964 -> 1964 | Q73: =4718 -> 4718 | R73: =2039 -> 2039 | S73: =5893 -> 5893 | T73: =1745 -> 1745 | U73: =6978 -> 6978 | V73: =0 -> 0 | W73: =0 -> 0 | X73: =0 -> 0
B74: 4.10 | C74: Loss Ratio | D74: =D70/(D71+D72) -> 0.8092999583 | E74: 0.7649328907 | F74: 0.7607013742 | G74: 0.8850025731 | H74: 0.8047708256 | I74: 0.8550903665 | J74: 0.8376978852 | K74: 0.7358563936 | O74: 0.7625339866 | P74: 0.7596023116 | Q74: 0.8822336028 | R74: 0.8037297877 | S74: 0.8527063041 | T74: 0.8404475657 | U74: 0.7428630561
C75: Per Member Per Month
B76: 4.11 | C76: Allowed Claims | D76: =D66/D73 -> 617.3202867 | E76: 623.1867544 | F76: 606.8563755 | G76: 641.5788979 | H76: 625.9685967 | I76: 652.5425895 | J76: 579.0266289 | K76: 562.914346 | O76: 648.173894 | P76: 631.8435151 | Q76: 666.5660375 | R76: 650.9557363 | S76: 677.5297291 | T76: 604.0137685 | U76: 587.9014856
B77: 4.12 | C77: Reinsurance | D77: =D67/D73 -> 0 | E77: 0 | F77: 0 | G77: 0 | H77: 0 | I77: 0 | J77: 0 | K77: 0 | O77: 0 | P77: 0 | Q77: 0 | R77: 0 | S77: 0 | T77: 0 | U77: 0
B78: 4.13 | C78: Member Cost Sharing | D78: =D68/D73 -> 102.4059385 | E78: 86.24130471 | F78: 95.5533039 | G78: 46.65102246 | H78: 77.15767586 | I78: 59.87773321 | J78: 124.0783301 | K78: 167.7547399 | O78: 91.71981778 | P78: 101.031817 | Q78: 52.12953554 | R78: 82.63618894 | S78: 65.35624629 | T78: 129.5568432 | U78: 173.233253
B79: 4.14 | C79: Cost Sharing Reduction | D79: =D69/D73 -> 0 | E79: 0 | F79: 0 | G79: 0 | H79: 0 | I79: 0 | J79: 0 | K79: 0 | O79: 0 | P79: 0 | Q79: 0 | R79: 0 | S79: 0 | T79: 0 | U79: 0
B80: 4.15 | C80: Incurred Claims | D80: =D70/D73 -> 514.9143483 | E80: 536.9454497 | F80: 511.3030716 | G80: 594.9278755 | H80: 548.8109208 | I80: 592.6648563 | J80: 454.9482988 | K80: 395.1596061 | O80: 556.4540762 | P80: 530.8116981 | Q80: 614.436502 | R80: 568.3195473 | S80: 612.1734828 | T80: 474.4569253 | U80: 414.6682326
B81: 4.16 | C81: Risk Adjustment Transfer Amount | D81: =D71/D73 -> 6.049528207 | E81: -26.97551156 | F81: -26.95754285 | G81: 36.92935681 | H81: 22.16537046 | I81: 42.2275964 | J81: -19.10626281 | K81: -18.92544761 | O81: -26.97551156 | P81: -26.95754285 | Q81: 36.92935681 | R81: 22.16537046 | S81: 42.2275964 | T81: -19.10626281 | U81: -18.92544761
B82: 4.17 | C82: Premium | D82: =D72/D73 -> 630.1970736 | E82: 728.9265667 | F82: 699.1044443 | G82: 635.3035763 | H82: 659.7814688 | I82: 650.8744189 | J82: 562.1997895 | K82: 555.9318656 | O82: 756.7188227 | P82: 725.7596529 | Q82: 659.5262078 | R82: 684.9373848 | S82: 675.6907301 | T82: 583.6351456 | U82: 577.1282404

Sheet Wksh 3 - Rating Areas
A1: Rating Area Data Collection [assistive technology users, please reference cell A2 for instructions] | C1: Specify the total number of Rating Areas in your State by selecting the Create Rating Areas button or Ctrl + Shift + R.
A2: Press TAB and directional arrow keys to read through the document. If macros are disabled, press and hold the ALT key and press the F, then I, and then N key. After that, select the Enable All Content option by pressing enter. (note that you can also press the C key to select "Enable All Content") Instructions can be found in cells C1 through C4. If screen reader fails to announce a cell after performing a dropdown selection, please press F2 and then ESC to force the screen reader to resume. | C2: Select only the Rating Areas you are offering plans within and add a factor for each area.
C3: To validate, select the Validate button or Ctrl + Shift + I.
C4: To finalize, select the Finalize button or Ctrl + Shift + F.
A5: Rating Area | B5: Rating Factor
A6: Rating Area 1 | B6: 0.998073656
A7: Rating Area 2 | B7: 1.035432458
A8: Rating Area 3 | B8: 0.8974528479
A9: Rating Area 4 | B9: 1.024321122
A10: Rating Area 5 | B10: 0.931620025
A11: Rating Area 6 | B11: 1.130843564
A12: Rating Area 7 | B12: 0.8719580661
A13: Rating Area 8 | B13: 1.051562229

Sheet PlanTemplate (hidden)
A1: REBUILD | C1: Product-Plan Data Collection
C3: Company Legal Name: | D3: =IF('Wksh 1 - Market Experience'!C3<>"", 'Wksh 1 - Market Experience'!C3,"") -> WellCare Health Plans of Kentucky, Inc. | N3: State: | O3: =IF('Wksh 1 - Market Experience'!E4="","",'Wksh 1 - Market Experience'!E4) -> KY
C4: HIOS Issuer ID: | D4: =IF('Wksh 1 - Market Experience'!C4<>"", 'Wksh 1 - Market Experience'!C4,"") -> 72001 | N4: Market: | O4: =IF('Wksh 1 - Market Experience'!E5="","",'Wksh 1 - Market Experience'!E5) -> Individual
C5: Effective Date of Rate Change(s): | D5: =IF('Wksh 1 - Market Experience'!#REF!<>"", 'Wksh 1 - Market Experience'!#REF!,"") -> 
C7: Product/Plan Level Calculations
B9: Field # | C9: Section I: General Product and Plan Information
B10: 1.1 | C10: Product Name | K10: Rating Area 1 | L10: AL | M10: New | N10: Platinum | O10: Yes
B11: 1.2 | C11: Product ID | K11: Rating Area 2 | L11: AK | M11: Renewing | N11: Gold | O11: No
B12: 1.3 | C12: Plan Name | K12: Rating Area 3 | L12: AZ | M12: Terminated | N12: Silver
B13: 1.4 | C13: Plan ID (Standard Component ID) | K13: Rating Area 4 | L13: AR | N13: Bronze
B14: 1.5 | C14: Metal | K14: Rating Area 5 | L14: CA | N14: Catastrophic
B15: 1.6 | C15: AV Metal Value | K15: Rating Area 6 | L15: CO | N15: Not Applicable
B16: 1.7 | C16: Plan Category | K16: Rating Area 7 | L16: CT
B17: 1.8 | C17: Plan Type | K17: Rating Area 8 | L17: DC
B18: 1.9 | C18: Exchange Plan? | L18: DE
B19: 1.10 | C19: Effective Date of Proposed Rates | L19: FL
B20: 1.11 | C20: Cumulative Rate Change % (over 12 mos prior) | L20: GA
B21: 1.12 | C21: Product Rate Increase % | L21: HI
B22: 1.13 | C22: Submission Level Rate Increase % | L22: ID
L23: IL
C24: Section II: Experience Period and Current Plan Level Information | L24: IN
B25: 2.1 | C25: Plan ID (Standard Component ID) | D25: Total | E25: =IF(E13<>"",E13,"") ->  | L25: IA
B26: 2.2 | C26: Allowed Claims | D26: =SUM(E26:XFD26) -> 0 | L26: KS
B27: 2.3 | C27: Reinsurance | D27: =SUM(E27:XFD27) -> 0 | L27: KY
B28: 2.4 | C28: Member Cost Sharing | D28: =SUM(E28:XFD28) -> 0 | L28: LA
B29: 2.5 | C29: Cost Sharing Reduction | D29: =SUM(E29:XFD29) -> 0 | L29: ME
B30: 2.6 | C30: Incurred Claims | D30: =D26-D27-D28-D29 -> 0 | E30: =E26-E27-E28-E29 -> 0 | L30: MD
B31: 2.7 | C31: Risk Adjustment Transfer Amount | D31: =SUM(E31:XFD31) -> 0 | L31: MA
B32: 2.8 | C32: Premium | D32: =SUM(E32:XFD32) -> 0 | L32: MI
B33: 2.9 | C33: Experience Period Member Months | D33: =SUM(E33:XFD33) -> 0 | L33: MN
B34: 2.10 | C34: Current Enrollment | D34: =SUM(E34:XFD34) -> 0 | L34: MS
B35: 2.11 | C35: Current Premium PMPM | D35: =SUMPRODUCT(E35:XFD35,E34:XFD34)/D34 ->  | L35: MO
B36: 2.12 | C36: Loss Ratio | D36: =D30/(D31+D32) ->  | E36: =E30/(E31+E32) ->  | L36: MT
C37: Per Member Per Month | L37: NE
B38: 2.13 | C38: Allowed Claims | D38: =D26/D33 ->  | E38: =E26/E33 ->  | L38: NV
B39: 2.14 | C39: Reinsurance | D39: =D27/D33 ->  | E39: =E27/E33 ->  | L39: NH
B40: 2.15 | C40: Member Cost Sharing | D40: =D28/D33 ->  | E40: =E28/E33 ->  | L40: NJ
B41: 2.16 | C41: Cost Sharing Reduction | D41: =D29/D33 ->  | E41: =E29/E33 ->  | L41: NM
B42: 2.17 | C42: Incurred Claims | D42: =D30/D33 ->  | E42: =E30/E33 ->  | L42: NY
B43: 2.18 | C43: Risk Adjustment Transfer Amount | D43: =D31/D33 ->  | E43: =E31/E33 ->  | L43: NC
B44: 2.19 | C44: Premium | D44: =D32/D33 ->  | E44: =E32/E33 ->  | L44: ND
L45: OH
C46: Section III: Plan Adjustment Factors | L46: OK
B47: 3.1 | C47: Plan ID (Standard Component ID) | E47: =IF(E13<>"",E13,"") ->  | L47: OR
B48: 3.2 | C48: Market Adjusted Index Rate | E48: ='Wksh 1 - Market Experience'!F46 -> 603.0144222 | L48: PA
B49: 3.3 | C49: AV and Cost Sharing Design of Plan | L49: RI
B50: 3.4 | C50: Provider Network Adjustment | L50: SC
B51: 3.5 | C51: Benefits in Addition to EHB | L51: SD
C52: Administrative Costs | L52: TN
B53: 3.6 | C53: Administrative Expense | L53: TX
B54: 3.7 | C54: Taxes and Fees | L54: UT
B55: 3.8 | C55: Profit & Risk Load | L55: VT
B56: 3.9 | C56: Catastrophic Adjustment | L56: VA
B57: 3.10 | C57: Plan Adjusted Index Rate | E57: =($E$48*PRODUCT(E49:E51)*E56)/(1-SUM(E53:E55)) -> 0 | L57: WA
L58: WV
B59: 3.11 | C59: Age Calibration Factor | E59: =IF(D59<>"", D59, "") ->  | L59: WI
B60: 3.12 | C60: Geographic Calibration Factor | E60: =IF(D60<>"", D60, "") ->  | L60: WY
B61: 3.13 | C61: Tobacco Calibration Factor | E61: =IF(D61<>"", D61, "") -> 
B62: 3.14 | C62: Calibrated Plan Adjusted Index Rate | E62: =E57*(PRODUCT($E$59:$E$61)) -> 0
C64: Section IV: Projected Plan Level Information
B65: 4.1 | C65: Plan ID (Standard Component ID) | D65: Total | E65: =IF(E13<>"",E13,"") -> 
B66: 4.2 | C66: Allowed Claims | D66: =SUM(E66:XFD66) -> 0
B67: 4.3 | C67: Reinsurance | D67: =SUM(E67:XFD67) -> 0
B68: 4.4 | C68: Member Cost Sharing | D68: =SUM(E68:XFD68) -> 0
B69: 4.5 | C69: Cost Sharing Reduction | D69: =SUM(E69:XFD69) -> 0
B70: 4.6 | C70: Incurred Claims | D70: =D66-D67-D68-D69 -> 0 | E70: =E66-E67-E68-E69 -> 0
B71: 4.7 | C71: Risk Adjustment Transfer Amount | D71: =SUM(E71:XFD71) -> 0
B72: 4.8 | C72: Premium | D72: =SUM(E72:XFD72) -> 0
B73: 4.9 | C73: Projected Member Months | D73: =SUM(E73:XFD73) -> 0
B74: 4.10 | C74: Loss Ratio | D74: =D70/(D71+D72) ->  | E74: =E70/(E71+E72) -> 
C75: Per Member Per Month
B76: 4.11 | C76: Allowed Claims | D76: =D66/D73 ->  | E76: =E66/E73 -> 
B77: 4.12 | C77: Reinsurance | D77: =D67/D73 ->  | E77: =E67/E73 -> 
B78: 4.13 | C78: Member Cost Sharing | D78: =D68/D73 ->  | E78: =E68/E73 -> 
B79: 4.14 | C79: Cost Sharing Reduction | D79: =D69/D73 ->  | E79: =E69/E73 -> 
B80: 4.15 | C80: Incurred Claims | D80: =D70/D73 ->  | E80: =E70/E73 -> 
B81: 4.16 | C81: Risk Adjustment Transfer Amount | D81: =D71/D73 ->  | E81: =E71/E73 -> 
B82: 4.17 | C82: Premium | D82: =D72/D73 ->  | E82: =E72/E73 -> 
